fUSD/lending_fUSD_20251117
["ID","MTS","AMOUNT","RATE_DAILY","PERIOD"]
[394211485,1763382639923,-150.0,0.00037136,7]
[394211487,1763382639932,-160.10203495,0.00037147,7]
[394211489,1763382639941,-150.0,0.00037157,7]
[394211490,1763382639951,-150.0,0.00037157,7]
[394211492,1763382639960,-150.0,0.00037157,7]
[394211494,1763382639970,-13301.8689547,0.00037163,4]
[394211497,1763382639979,-6941.40708343,0.00037163,4]
[394211498,1763382639989,-351.58,0.00037172,14]
[394211501,1763382639998,-185.5789899,0.00037172,2]
[394211502,1763382640008,-500.44731947,0.00037173,5]
[394211505,1763382640017,-501.44245862,0.00037173,5]
[394211506,1763382640027,-500.0,0.00037173,2]
[394211509,1763382640037,-500.0,0.00037173,5]
[394211511,1763382640046,-501.8690547,0.00037173,5]
[394211512,1763382640055,-500.0,0.00037173,5]
[394211514,1763382640066,-545.489,0.00037173,47]
[394211517,1763382640076,-374835.982505,0.00037173,4]
[394211519,1763382640086,-150.0,0.00037175,7]
[394211520,1763382640096,-150.0,0.00037178,7]
[394211522,1763382640105,-151.0,0.0003718,14]
[394211524,1763382640114,-151.0,0.0003718,14]
[394211526,1763382640124,-500.0,0.00037183,30]
[394211528,1763382640133,-150.0,0.00037186,7]
[394211530,1763382640143,-160.10203495,0.00037186,7]
[394211533,1763382640155,-150.0,0.00037192,7]
[394211535,1763382640164,-150.0,0.00037195,7]
[394211537,1763382640178,-152.43,0.000372,14]
[394211539,1763382640188,-301.89,0.000372,30]
[394211541,1763382640197,-150.0,0.00037216,7]
[394211543,1763382640206,-150.0,0.0003722,7]
[394211545,1763382640215,-160.10203495,0.00037224,7]
[394211547,1763382640225,-150.0,0.00037243,7]
[394211548,1763382640234,-150.0,0.00037243,7]
[394211550,1763382640244,-150.0,0.00037243,7]
[394211552,1763382640253,-150.0,0.00037247,7]
[394211554,1763382640262,-150.0,0.00037263,7]
[394211556,1763382640272,-150.0,0.00037263,7]
[394211558,1763382640281,-160.10203495,0.00037263,7]
[394211560,1763382640291,-150.0,0.00037276,7]
[394211562,1763382640300,-150.0,0.00037301,7]
[394211564,1763382640309,-160.10203495,0.00037301,7]
[394211566,1763382640318,-150.0,0.00037305,7]
[394211568,1763382640327,-150.0,0.00037319,7]
[394211570,1763382640336,-150.0,0.0003733,7]
[394211572,1763382640345,-150.0,0.00037333,7]
[394211574,1763382640354,-150.0,0.00037335,7]
[394211576,1763382640363,-160.10203495,0.0003734,7]
[394211578,1763382640373,-150.0,0.00037347,7]
[394211580,1763382640382,-150.0,0.00037347,7]
[394211582,1763382640390,-150.0,0.00037347,7]
[394211584,1763382640399,-150.0,0.00037359,7]
[394211586,1763382640409,-160.10203495,0.00037378,7]
[394211588,1763382640421,-150.0,0.0003739,7]
[394211590,1763382640433,-150.0,0.00037391,7]
[394211592,1763382640441,-150.0,0.00037395,7]
[394211594,1763382640450,-150.0,0.00037404,7]
[394211596,1763382640459,-6941.40708343,0.00037407,4]
[394211598,1763382640469,-150.0,0.00037417,7]
[394211600,1763382640479,-150.0,0.00037417,7]
[394211602,1763382640490,-150.0,0.00037417,7]
[394211604,1763382640499,-160.10203495,0.00037417,7]
[394211606,1763382640508,-150.0,0.00037417,7]
[394211608,1763382640517,-150.0,0.00037432,7]
[394211610,1763382640527,-351.58,0.00037446,14]
[394211612,1763382640536,-150.0,0.00037455,7]
[394211614,1763382640545,-160.10203495,0.00037455,7]
[394211616,1763382640555,-500.0,0.00037457,30]
[394211618,1763382640564,-13882.8141669,0.0003746,4]
[394211620,1763382640573,-150.0,0.00037462,7]
[394211622,1763382640583,-150.0,0.00037474,7]
[394211624,1763382640592,-150.0,0.00037474,7]
[394211626,1763382640601,-150.0,0.00037474,7]
[394211628,1763382640611,-150.0,0.00037474,7]
[394211630,1763382640620,-5115.73992503,0.00037489,2]
[394211632,1763382640629,-3193.63980824,0.00037491,2]
[394211634,1763382640639,-160.10203495,0.00037494,7]
[394211636,1763382640648,-150.0,0.000375,7]
[394211638,1763382640657,-150.0,0.00037503,7]
[394211639,1763382640666,-150.0,0.00037514,7]
[394211641,1763382640678,-150.0,0.00037517,7]
[394211644,1763382640687,-150.0,0.00037532,7]
[394211646,1763382640696,-160.10203495,0.00037532,7]
[394211647,1763382640705,-150.0,0.00037534,7]
[394211650,1763382640715,-150.0,0.00037545,7]
[394211651,1763382640725,-150.0,0.00037559,7]
[394211653,1763382640735,-160.10203495,0.00037571,7]
[394211655,1763382640744,-150.0,0.00037574,7]
[394211657,1763382640753,-150.0,0.0003759,7]
[394211659,1763382640762,-150.0,0.0003759,7]
[394211661,1763382640771,-150.0,0.0003759,7]
[394211663,1763382640781,-182.84,0.00037592,120]
[394211665,1763382640794,-150.0,0.00037601,7]
[394211667,1763382640803,-150.0,0.00037606,7]
[394211669,1763382640812,-160.10203495,0.00037609,7]
[394211671,1763382640821,-150.0,0.00037616,7]
[394211673,1763382640831,-150.0,0.00037633,7]
[394211675,1763382640840,-6941.40708343,0.00037638,4]
[394211677,1763382640849,-150.0,0.00037644,7]
[394211679,1763382640864,-150.0,0.00037648,7]
[394211681,1763382640875,-160.10203495,0.00037648,7]
[394211683,1763382640885,-150.0,0.00037652,7]
[394211685,1763382640895,-150.0,0.00037677,7]
[394211687,1763382640904,-150.0,0.00037678,7]
[394211689,1763382640913,-150.0,0.00037686,7]
[394211690,1763382640923,-150.0,0.00037686,7]
[394211692,1763382640933,-160.10203495,0.00037686,7]
[394211694,1763382640943,-150.0,0.00037693,7]
[394211696,1763382640952,-150.0,0.00037705,7]
[394211698,1763382640962,-351.58,0.0003772,14]
[394211700,1763382640972,-160.10203495,0.00037725,7]
[394211702,1763382640981,-150.0,0.00037728,7]
[394211704,1763382640990,-500.0,0.00037731,30]
[394211706,1763382640999,-150.0,0.0003775,7]
[394211708,1763382641008,-150.0,0.00037752,7]
[394211710,1763382641018,-150.0,0.00037757,7]
[394211712,1763382641027,-150.0,0.00037763,7]
[394211714,1763382641037,-150.0,0.00037763,7]
[394211716,1763382641047,-150.0,0.00037763,7]
[394211718,1763382641056,-160.10203495,0.00037763,7]
[394211720,1763382641066,-150.0,0.00037763,7]
[394211722,1763382641075,-150.0,0.00037771,7]
[394211724,1763382641084,-307.6337212,0.0003779,2]
[394211726,1763382641094,-150.0,0.00037792,7]
[394211728,1763382641103,-160.10203495,0.00037802,7]
[394211730,1763382641112,-150.0,0.00037805,7]
[394211732,1763382641122,-500.0,0.00037808,30]
[394211734,1763382641131,-150.0,0.00037812,7]
[394211736,1763382641140,-150.0,0.00037813,7]
[394211738,1763382641149,-150.0,0.00037821,7]
[394211740,1763382641159,-150.0,0.00037822,7]
[394211741,1763382641168,-150.0,0.00037827,7]
[394211742,1763382641178,-151.0,0.00037834,6]
[394211743,1763382641187,-160.10203495,0.0003784,7]
[394211744,1763382641195,-150.0,0.0003785,7]
[394211745,1763382641204,-150.0,0.00037856,7]
[394211746,1763382641213,-361.29799243,0.00037863,30]
[394211747,1763382641222,-158.50515318,0.00037863,30]
[394211749,1763382641231,-311.88188736,0.00037863,30]
[394211751,1763382641240,-163.63357217,0.00037863,30]
[394211753,1763382641249,-155.94094368,0.00037863,30]
[394211755,1763382641258,-153.37673419,0.00037863,30]
[394211757,1763382641267,-155.94094368,0.00037863,30]
[394211759,1763382641277,-150.0,0.00037871,7]
[394211761,1763382641286,-150.0,0.00037879,7]
[394211763,1763382641295,-160.10203495,0.00037879,7]
[394211765,1763382641304,-150.0,0.00037894,7]
[394211767,1763382641312,-150.0,0.00037898,7]
[394211769,1763382641324,-150.0,0.00037898,7]
[394211771,1763382641333,-6941.40708343,0.00037901,4]
[394211773,1763382641342,-5115.73992503,0.00037906,2]
[394211775,1763382641352,-3193.63980824,0.00037907,2]
[394211777,1763382641361,-160.10203495,0.00037917,7]
[394211779,1763382641371,-150.0,0.00037931,7]
[394211781,1763382641380,-150.0,0.00037936,7]
[394211783,1763382641389,-150.0,0.00037936,7]
[394211785,1763382641398,-150.0,0.00037936,7]
[394211787,1763382641408,-150.0,0.0003794,7]
[394211789,1763382641418,-160.10203495,0.00037956,7]
[394211791,1763382641428,-150.0,0.00037957,7]
[394211793,1763382641438,-150.0,0.00037966,7]
[394211795,1763382641448,-150.0,0.00037968,7]
[394211797,1763382641461,-150.0,0.00037983,7]
[394211799,1763382641471,-62472.6637509,0.0003799,4]
[394211801,1763382641483,-150.0,0.0003799,7]
[394211803,1763382641492,-351.58,0.00037994,14]
[394211805,1763382641501,-150.0,0.00037994,7]
[394211807,1763382641511,-160.10203495,0.00037994,7]
[394211809,1763382641521,-97374.15634242,0.00038,2]
[394211811,1763382641530,-34508.776619,0.00038,7]
[394211813,1763382641540,-160.0,0.00038,120]
[394211815,1763382641549,-500.0,0.00038005,30]
[394211817,1763382641560,-222.2113773,0.0003801,2]
[394211819,1763382641569,-292.44768935,0.00038016,2]
[394211821,1763382641579,-150.0,0.00038023,7]
[394211850,1763382641827,-150.0,0.00038025,7]
[394211852,1763382641837,-361.29799243,0.00038027,30]
[394211854,1763382641847,-158.50515318,0.00038027,30]
[394211856,1763382641856,-311.88188736,0.00038027,30]
[394211858,1763382641866,-153.37673419,0.00038027,30]
[394211860,1763382641876,-160.10203495,0.00038033,7]
[394211862,1763382641885,-150.0,0.00038038,7]
[394211864,1763382641895,-150.0,0.00038039,7]
[394211866,1763382641905,-150.0,0.0003805,7]
[394211868,1763382641915,-150.0,0.00038052,7]
[394211870,1763382641926,-150.0,0.00038067,7]
[394211872,1763382641935,-160.10203495,0.00038071,7]
[394211874,1763382641945,-292.48279,0.00038073,2]
[394211876,1763382641954,-500.0,0.00038082,30]
[394211878,1763382641964,-41648.4425006,0.00038095,4]
[394211880,1763382641974,-155.94094368,0.0003811,30]
[394211882,1763382641984,-263.80743456,0.0003811,7]
[394211884,1763382641993,-272.27660242,0.0003811,7]
[394211887,1763382642006,-247.53410303,0.0003811,7]
[394211889,1763382642016,-209.43752822,0.0003811,7]
[394211891,1763382642026,-150.0,0.0003811,7]
[394211893,1763382642036,-192.25682683,0.0003811,7]
[394211896,1763382642047,-150.0,0.0003811,7]
[394211898,1763382642057,-160.10203495,0.0003811,7]
[394211899,1763382642067,-168.66866561,0.0003811,7]
[394211902,1763382642077,-190.6592067,0.0003811,7]
[394211903,1763382642086,-248.34887386,0.0003811,7]
[394211906,1763382642096,-150.0,0.0003811,7]
[394211908,1763382642106,-184.24800143,0.0003811,7]
[394211910,1763382642116,-162.69206005,0.0003811,7]
[394211912,1763382642125,-155.94094368,0.0003811,30]
[394211914,1763382642135,-151.0,0.00038113,14]
[394211916,1763382642145,-152.200975,0.00038116,31]
[394211918,1763382642155,-151.0,0.00038116,31]
[394211920,1763382642164,-151.0,0.00038116,31]
[394211922,1763382642175,-151.0,0.00038116,31]
[394211924,1763382642187,-151.0,0.00038116,31]
[394211926,1763382642197,-151.592104,0.00038116,31]
[394211928,1763382642206,-151.0,0.00038116,31]
[394211930,1763382642219,-151.0,0.00038116,31]
[394211932,1763382642230,-152.341092,0.00038116,31]
[394211934,1763382642240,-151.823225,0.00038116,31]
[394211936,1763382642249,-151.0,0.00038116,31]
[394211938,1763382642259,-151.941783,0.00038116,31]
[394211940,1763382642269,-151.0,0.00038116,31]
[394211942,1763382642280,-151.0,0.00038116,31]
[394211944,1763382642291,-151.0,0.00038116,31]
[394211946,1763382642301,-151.0,0.00038116,31]
[394211948,1763382642310,-151.0,0.00038116,31]
[394211950,1763382642320,-157.522982,0.00038116,31]
[394211952,1763382642329,-151.0,0.00038116,31]
[394211954,1763382642339,-157.522982,0.00038116,31]
[394211956,1763382642348,-151.0,0.00038116,10]
[394211958,1763382642358,-157.522982,0.00038116,31]
[394211960,1763382642368,-151.0,0.00038116,31]
[394211962,1763382642377,-157.522982,0.00038116,31]
[394211964,1763382642387,-154.501776,0.00038116,31]
[394211967,1763382642400,-151.0,0.00038116,31]
[394211969,1763382642409,-151.0,0.00038116,30]
[394211971,1763382642419,-151.0,0.00038116,28]
[394211973,1763382642430,-151.0,0.00038116,31]
[394211975,1763382642440,-151.0,0.00038116,28]
[394211976,1763382642449,-151.0,0.00038116,31]
[394211977,1763382642460,-151.0,0.00038116,31]
[394211978,1763382642470,-151.0,0.00038116,31]
[394211979,1763382642479,-151.0,0.00038116,31]
[394211980,1763382642489,-151.0,0.00038116,31]
[394211981,1763382642499,-151.0,0.00038116,31]
[394211983,1763382642508,-151.0,0.00038116,31]
[394211985,1763382642518,-151.0,0.00038116,31]
[394211987,1763382642528,-151.0,0.00038116,31]
[394211989,1763382642537,-338.432356,0.00038116,31]
[394211991,1763382642547,-338.432356,0.00038116,31]
[394211993,1763382642556,-338.432356,0.00038116,31]
[394211995,1763382642566,-151.0,0.00038116,31]
[394211997,1763382642575,-338.432356,0.00038116,31]
[394211999,1763382642585,-277.992222,0.00038116,31]
[394212002,1763382642595,-277.992222,0.00038116,31]
[394212004,1763382642607,-277.992222,0.00038116,31]
[394212006,1763382642616,-441.434822,0.00038116,31]
[394212008,1763382642627,-277.992222,0.00038116,31]
[394212010,1763382642636,-151.0,0.00038116,31]
[394212012,1763382642646,-441.434822,0.00038116,31]
[394212014,1763382642656,-151.0,0.00038116,31]
[394212016,1763382642666,-441.434822,0.00038116,31]
[394212018,1763382642676,-151.0,0.00038116,31]
[394212020,1763382642686,-441.434822,0.00038116,31]
[394212022,1763382642695,-151.0,0.00038116,31]
[394212024,1763382642704,-151.0,0.00038116,31]
[394212026,1763382642714,-151.0,0.00038116,31]
[394212028,1763382642723,-151.0,0.00038116,31]
[394212030,1763382642732,-151.0,0.00038116,31]
[394212032,1763382642742,-151.0,0.00038116,31]
[394212034,1763382642752,-151.0,0.00038116,31]
[394212036,1763382642762,-151.0,0.00038116,31]
[394212038,1763382642772,-151.0,0.00038116,31]
[394212040,1763382642781,-151.0,0.00038116,31]
[394212042,1763382642795,-170.092304,0.00038116,31]
[394212044,1763382642804,-170.092304,0.00038116,31]
[394212046,1763382642814,-151.0,0.00038116,31]
[394212048,1763382642823,-170.092304,0.00038116,31]
[394212050,1763382642834,-151.0,0.00038116,31]
[394212052,1763382642843,-170.092304,0.00038116,31]
[394212054,1763382642853,-258.910321,0.00038116,31]
[394212056,1763382642863,-151.0,0.00038116,31]
[394212058,1763382642872,-151.0,0.00038116,31]
[394212060,1763382642882,-151.0,0.00038116,31]
[394212062,1763382642891,-151.0,0.00038116,31]
[394212064,1763382642902,-151.0,0.00038116,31]
[394212066,1763382642913,-229.834132,0.00038116,31]
[394212069,1763382642924,-151.0,0.00038116,31]
[394212071,1763382642935,-151.0,0.00038116,31]
[394212072,1763382642944,-151.0,0.00038116,31]
[394212074,1763382642953,-151.0,0.00038116,31]
[394212076,1763382642963,-151.0,0.00038116,31]
[394212078,1763382642972,-151.0,0.00038116,31]
[394212080,1763382642982,-151.0,0.00038116,31]
[394212083,1763382642998,-151.0,0.00038116,31]
[394212086,1763382643011,-151.0,0.00038116,31]
[394212088,1763382643021,-151.0,0.00038116,31]
[394212090,1763382643032,-151.0,0.00038116,31]
[394212092,1763382643042,-151.0,0.00038116,31]
[394212094,1763382643052,-151.0,0.00038116,31]
[394212096,1763382643062,-151.0,0.00038116,31]
[394212098,1763382643073,-151.0,0.00038116,31]
[394212100,1763382643084,-164.271193,0.00038116,31]
[394212102,1763382643094,-151.0,0.00038116,31]
[394212104,1763382643105,-153.782234,0.00038116,31]
[394212106,1763382643114,-151.0,0.00038116,31]
[394212108,1763382643124,-151.0,0.00038116,31]
[394212110,1763382643134,-151.0,0.00038116,31]
[394212112,1763382643144,-151.0,0.00038116,31]
[394212114,1763382643153,-151.0,0.00038116,31]
[394212116,1763382643163,-500.0,0.00038125,4]
[394212118,1763382643174,-170.8660425,0.00038126,2]
[394212120,1763382643183,-272.9139886,0.00038126,2]
[394212122,1763382643193,-18099.042464,0.00038126,2]
[394212125,1763382643203,-26850.1191953,0.00038126,2]
[394212127,1763382643213,-912.6402669,0.00038126,2]
[394212129,1763382643223,-500.0,0.00038132,14]
[394212131,1763382643232,-151.0,0.00038133,14]
[394212133,1763382643242,-878.85,0.00038135,5]
[394212135,1763382643252,-500.0,0.00038135,120]
[394212137,1763382643263,-500.0,0.00038135,120]
[394212139,1763382643272,-464.11720793,0.00038135,120]
[394212141,1763382643282,-500.0,0.00038135,7]
[394212143,1763382643292,-500.0,0.00038135,7]
[394212145,1763382643302,-500.0,0.00038135,7]
[394212147,1763382643311,-500.0,0.00038135,120]
[394212149,1763382643321,-500.0,0.00038135,30]
[394212151,1763382643331,-575.41913925,0.00038135,30]
[394212153,1763382643341,-500.0,0.00038135,2]
[394212155,1763382643350,-564.84335082,0.00038135,120]
[394212157,1763382643362,-500.0,0.00038135,30]
[394212160,1763382643372,-500.0,0.00038135,30]
[394212161,1763382643381,-519.3670811,0.00038135,120]
[394212164,1763382643391,-500.0,0.00038135,2]
[394212165,1763382643400,-500.0,0.00038135,120]
[394212168,1763382643410,-409.42606604,0.00038135,120]
[394212170,1763382643421,-300.0,0.00038135,2]
[394212171,1763382643430,-500.0,0.00038135,120]
[394212174,1763382643439,-300.0,0.00038135,2]
[394212176,1763382643449,-418.12359549,0.00038135,2]
[394212178,1763382643459,-1967031.34465185,0.00038136,120]
[394212197,1763382643844,-181808.13750428,0.00038136,120]
[394212199,1763382643856,-17557.57769612,0.00038136,120]
[394212201,1763382643870,-58009.25226816,0.00038136,120]
[394212202,1763382643884,-5795.45543174,0.00038136,120]
[394212204,1763382644759,-500.0,0.00037172,2]
[394212205,1763382644768,-6352.6103175,0.00038136,120]
[394212212,1763382646522,-311.62708841,0.00038136,120]
[394212380,1763383204599,-158.31,0.00018927,2]
[394212381,1763383204626,-158.31,0.00020819,2]
[394212382,1763383204657,-250.0,0.00020819,2]
[394212383,1763383204681,-288.39299547,0.00022,2]
[394212384,1763383207131,-180.68372135,0.00022,2]
[394212385,1763383209041,-185.8387768,0.00022,2]
[394212386,1763383213257,-829.49475504,0.00022,2]
[394212387,1763383246429,200.24,0.00017,2]
[394212402,1763383831794,-2663.60321885,0.00022,2]
[394212403,1763383831803,-479.1746172,0.00022048,2]
[394212404,1763383831811,-158.31,0.00022712,2]
[394212405,1763383831820,-158.31,0.00024605,2]
[394212406,1763383831832,-150.0,0.000255,14]
[394212407,1763383831841,-158.31,0.00026497,2]
[394212408,1763383831850,-158.31,0.0002839,2]
[394212409,1763383831859,-1000.0,0.0003,10]
[394212410,1763383831869,-158.31,0.00030283,2]
[394212411,1763383831878,-300.0,0.00032013,2]
[394212412,1763383831887,-599.42161444,0.00032013,2]
[394212413,1763383831897,-158.31,0.00032175,2]
[394212414,1763383831907,-1600.0,0.00032943,3]
[394212415,1763383831918,-1335.79,0.00032944,2]
[394212416,1763383831928,-300.0,0.00032967,2]
[394212417,1763383831937,-400.0,0.00032967,3]
[394212418,1763383831946,-6489.0,0.00032969,2]
[394212419,1763383831956,-264.84,0.000334,30]
[394212420,1763383831966,-1000.0,0.00033767,2]
[394212421,1763383831976,-158.31,0.00034068,2]
[394212422,1763383831986,-17821.59800952,0.0003429,7]
[394212423,1763383831995,-150.0,0.00034299,7]
[394212424,1763383832016,-167.69866586,0.00034299,7]
[394212425,1763383832025,-150.0,0.00034299,7]
[394212426,1763383832036,-227.97083002,0.00034299,7]
[394212427,1763383832046,-150.0,0.00034299,7]
[394212428,1763383832056,-150.0,0.00034299,7]
[394212429,1763383832065,-150.0,0.00034299,7]
[394212430,1763383832074,-271.71340129,0.00034299,7]
[394212431,1763383832083,-150.0,0.00034299,7]
[394212432,1763383832092,-160.22425461,0.00034299,7]
[394212433,1763383832101,-150.0,0.00034299,7]
[394212434,1763383832110,-189.80031153,0.00034299,7]
[394212435,1763383832119,-150.0,0.00034299,7]
[394212436,1763383832129,-150.0,0.00034299,7]
[394212437,1763383832138,-150.0,0.00034299,7]
[394212438,1763383832147,-167.69866586,0.00034337,7]
[394212439,1763383832157,-227.97083002,0.00034337,7]
[394212440,1763383832170,-271.71340129,0.00034337,7]
[394212441,1763383832179,-160.22425461,0.00034337,7]
[394212442,1763383832188,-150.0,0.00034339,7]
[394212445,1763383832198,-150.0,0.00034341,7]
[394212446,1763383832207,-150.0,0.0003435,7]
[394212451,1763383832217,-167.69866586,0.00034376,7]
[394212453,1763383832227,-227.97083002,0.00034376,7]
[394212455,1763383832236,-271.71340129,0.00034376,7]
[394212457,1763383832245,-160.22425461,0.00034376,7]
[394212458,1763383832255,-150.0,0.0003438,7]
[394212459,1763383832263,-150.0,0.00034383,7]
[394212460,1763383832273,-150.0,0.00034383,7]
[394212461,1763383832282,-150.0,0.00034402,7]
[394212462,1763383832291,-167.69866586,0.00034414,7]
[394212463,1763383832300,-227.97083002,0.00034414,7]
[394212464,1763383832310,-271.71340129,0.00034414,7]
[394212465,1763383832319,-160.22425461,0.00034414,7]
[394212466,1763383832328,-265.78,0.00034416,2]
[394212467,1763383832337,-150.0,0.0003442,7]
[394212468,1763383832346,-150.0,0.00034426,7]
[394212469,1763383832355,-167.69866586,0.00034453,7]
[394212470,1763383832365,-227.97083002,0.00034453,7]
[394212471,1763383832375,-271.71340129,0.00034453,7]
[394212472,1763383832383,-160.22425461,0.00034453,7]
[394212473,1763383832392,-150.0,0.00034453,7]
[394212474,1763383832401,-150.0,0.00034461,7]
[394212475,1763383832410,-150.0,0.00034468,7]
[394212476,1763383832419,-150.0,0.00034468,7]
[394212477,1763383832428,-150.0,0.00034472,7]
[394212478,1763383832437,-150.0,0.00034489,7]
[394212479,1763383832446,-155.56796956,0.00034491,7]
[394212480,1763383832548,-12.1306963,0.00034491,7]
[394212481,1763383832557,-227.97083002,0.00034491,7]
[394212482,1763383832567,-180.16017091,0.00034491,7]
[394212483,1763383832578,-91.55323038,0.00034491,7]
[394212484,1763383832587,-160.22425461,0.00034491,7]
[394212485,1763383832596,-150.0,0.00034501,7]
[394212486,1763383832606,-150.0,0.00034505,7]
[394212487,1763383832615,-76.64251501,0.0003451,7]
[394212488,1763383832672,-73.35748499,0.0003451,7]
[394212489,1763383832681,-167.69866586,0.0003453,7]
[394212490,1763383832690,-227.97083002,0.0003453,7]
[394212491,1763383832699,-271.71340129,0.0003453,7]
[394212492,1763383832709,-160.22425461,0.0003453,7]
[394212493,1763383832718,-77.56017498,0.00034542,7]
[394212494,1763383832729,-72.43982502,0.00034542,7]
[394212495,1763383832738,-150.0,0.00034553,7]
[394212496,1763383832747,-150.0,0.00034553,7]
[394212497,1763383832755,-150.0,0.00034556,7]
[394212498,1763383832764,-167.69866586,0.00034568,7]
[394212499,1763383832773,-227.97083002,0.00034568,7]
[394212500,1763383832782,-271.71340129,0.00034568,7]
[394212501,1763383832792,-160.22425461,0.00034568,7]
[394212502,1763383832802,-150.0,0.00034582,7]
[394212503,1763383832811,-150.0,0.00034595,7]
[394212504,1763383832820,-167.69866586,0.00034607,7]
[394212505,1763383832829,-227.97083002,0.00034607,7]
[394212506,1763383832838,-271.71340129,0.00034607,7]
[394212507,1763383832847,-160.22425461,0.00034607,7]
[394212508,1763383832856,-150.0,0.00034608,7]
[394212509,1763383832865,-150.0,0.00034623,7]
[394212510,1763383832874,-150.0,0.00034637,7]
[394212511,1763383832884,-150.0,0.00034637,7]
[394212512,1763383832893,-167.69866586,0.00034645,7]
[394212513,1763383832902,-227.97083002,0.00034645,7]
[394212514,1763383832911,-271.71340129,0.00034645,7]
[394212515,1763383832920,-160.22425461,0.00034645,7]
[394212516,1763383832929,-150.0,0.00034645,7]
[394212517,1763383832937,-150.0,0.00034659,7]
[394212518,1763383832947,-150.0,0.00034664,7]
[394212519,1763383832957,-150.0,0.0003468,7]
[394212520,1763383832967,-150.0,0.0003468,7]
[394212521,1763383832976,-167.69866586,0.00034684,7]
[394212522,1763383832984,-227.97083002,0.00034684,7]
[394212523,1763383832993,-271.71340129,0.00034684,7]
[394212524,1763383833002,-160.22425461,0.00034684,7]
[394212525,1763383833011,-150.0,0.00034704,7]
[394212526,1763383833020,-150.0,0.00034711,7]
[394212527,1763383833029,-167.69866586,0.00034722,7]
[394212528,1763383833039,-227.97083002,0.00034722,7]
[394212529,1763383833048,-271.71340129,0.00034722,7]
[394212530,1763383833056,-160.22425461,0.00034722,7]
[394212531,1763383833066,-150.0,0.00034722,7]
[394212532,1763383833075,-150.0,0.00034722,7]
[394212533,1763383833084,-150.0,0.00034745,7]
[394212534,1763383833093,-167.69866586,0.00034761,7]
[394212535,1763383833102,-227.97083002,0.00034761,7]
[394212536,1763383833111,-271.71340129,0.00034761,7]
[394212537,1763383833121,-160.22425461,0.00034761,7]
[394212538,1763383833130,-150.0,0.00034762,7]
[394212539,1763383833139,-150.0,0.00034764,7]
[394212540,1763383833148,-150.0,0.00034785,7]
[394212541,1763383833157,-167.69866586,0.00034799,7]
[394212542,1763383833173,-227.97083002,0.00034799,7]
[394212543,1763383833183,-271.71340129,0.00034799,7]
[394212544,1763383833192,-160.22425461,0.00034799,7]
[394212545,1763383833201,-150.0,0.00034807,7]
[394212546,1763383833211,-150.0,0.00034807,7]
[394212547,1763383833220,-150.0,0.00034814,7]
[394212548,1763383833230,-150.0,0.00034818,7]
[394212549,1763383833239,-150.0,0.00034826,7]
[394212550,1763383833250,-167.69866586,0.00034838,7]
[394212551,1763383833259,-227.97083002,0.00034838,7]
[394212552,1763383833269,-271.71340129,0.00034838,7]
[394212553,1763383833279,-160.22425461,0.00034838,7]
[394212554,1763383833288,-150.0,0.00034843,7]
[394212555,1763383833298,-150.0,0.00034849,7]
[394212556,1763383833309,-150.0,0.00034865,7]
[394212557,1763383833318,-150.0,0.00034866,7]